[Event "*** SCC Grand Prix: Titled Tuesday Blitz"]
[Site "Chess.com"]
[Date "2020.08.25"]
[Round "5"]
[White "Azoulas1"]
[Black "MrrRefrao"]
[Result "0-1"]
[WhiteElo "1952"]
[BlackElo "2197"]
[TimeControl "180+1"]
[EndTime "10:57:04 PDT"]
[Termination "MrrRefrao won by checkmate"]

1. e4 {[%clk 0:03:00.9]} 1... c5 {[%clk 0:02:56.5]} 2. Nf3 {[%clk 0:03:00.5]}
2... d6 {[%clk 0:02:56.1]} 3. Bb5+ {[%clk 0:02:59.6]} 3... Nd7 {[%clk 0:02:55]}
4. Ba4 {[%clk 0:02:59.3]} 4... Nf6 {[%clk 0:02:54.6]} 5. O-O {[%clk 0:02:58.1]}
5... a6 {[%clk 0:02:36]} 6. c4 {[%clk 0:02:52.1]} 6... g6 {[%clk 0:02:35.3]} 7.
Bc2 {[%clk 0:02:48.9]} 7... Bg7 {[%clk 0:02:33.6]} 8. d4 {[%clk 0:02:46.8]} 8...
O-O {[%clk 0:02:32.7]} 9. Nc3 {[%clk 0:02:45.4]} 9... Rb8 {[%clk 0:02:31.2]} 10.
Re1 {[%clk 0:02:39.1]} 10... cxd4 {[%clk 0:02:23.6]} 11. Nxd4 {[%clk 0:02:36.2]}
11... Ne5 {[%clk 0:02:04.4]} 12. b3 {[%clk 0:02:32.3]} 12... Bd7 {[%clk
0:02:04.4]} 13. Bb2 {[%clk 0:02:30.8]} 13... b5 {[%clk 0:02:00.7]} 14. cxb5
{[%clk 0:02:15.5]} 14... axb5 {[%clk 0:02:00.7]} 15. f4 {[%clk 0:02:15.2]} 15...
b4 {[%clk 0:02:00.8]} 16. fxe5 {[%clk 0:02:08.4]} 16... dxe5 {[%clk 0:02:00.9]}
17. Nf3 {[%clk 0:01:57]} 17... bxc3 {[%clk 0:02:00.5]} 18. Bxc3 {[%clk
0:01:56.9]} 18... Qb6+ {[%clk 0:01:49.4]} 19. Kf1 {[%clk 0:01:30.3]} 19... Ng4
{[%clk 0:01:44]} 20. Re2 {[%clk 0:01:26.5]} 20... Bb5 {[%clk 0:01:39.2]} 21. Bd3
{[%clk 0:01:25.7]} 21... Rbd8 {[%clk 0:01:39.3]} 22. h3 {[%clk 0:01:17.7]} 22...
Ne3+ {[%clk 0:01:38.2]} 23. Rxe3 {[%clk 0:01:15.5]} 23... Qxe3 {[%clk
0:01:39.1]} 24. Bxb5 {[%clk 0:01:15.2]} 24... Rxd1+ {[%clk 0:01:38.1]} 25. Rxd1
{[%clk 0:01:15.8]} 25... Qxc3 {[%clk 0:01:39]} 26. Bc4 {[%clk 0:01:12.2]} 26...
e6 {[%clk 0:01:37.6]} 27. a4 {[%clk 0:01:12.1]} 27... Bh6 {[%clk 0:01:29.9]} 28.
Kg1 {[%clk 0:01:06.7]} 28... Qe3+ {[%clk 0:01:20.8]} 29. Kh1 {[%clk 0:01:04.4]}
29... Qxe4 {[%clk 0:01:20.6]} 30. a5 {[%clk 0:01:03.3]} 30... Qc2 {[%clk
0:01:19.2]} 31. Ra1 {[%clk 0:01:00.5]} 31... e4 {[%clk 0:01:19.4]} 32. Nd4
{[%clk 0:00:54.7]} 32... Qc3 {[%clk 0:01:18.2]} 33. Rd1 {[%clk 0:00:50.8]} 33...
Qxa5 {[%clk 0:01:17.9]} 34. Nc6 {[%clk 0:00:50.6]} 34... Qc5 {[%clk 0:01:17]}
35. Nd4 {[%clk 0:00:48.9]} 35... e3 {[%clk 0:01:15.8]} 36. Ne2 {[%clk
0:00:48.7]} 36... Qe5 {[%clk 0:01:15.1]} 37. Kg1 {[%clk 0:00:45.9]} 37... Bg5
{[%clk 0:01:15]} 38. g3 {[%clk 0:00:43.9]} 38... Be7 {[%clk 0:01:13.5]} 39. h4
{[%clk 0:00:41.4]} 39... Bb4 {[%clk 0:01:13.8]} 40. Kg2 {[%clk 0:00:40.9]} 40...
Bd2 {[%clk 0:01:13.5]} 41. Ra1 {[%clk 0:00:37.6]} 41... Qe4+ {[%clk 0:01:13.6]}
42. Kh2 {[%clk 0:00:35.4]} 42... Rc8 {[%clk 0:01:12.9]} 43. Ra4 {[%clk
0:00:32.6]} 43... Qf3 {[%clk 0:01:12.5]} 44. Ba6 {[%clk 0:00:26.9]} 44... Qf2+
{[%clk 0:01:11.3]} 45. Kh3 {[%clk 0:00:25.5]} 45... Rc2 {[%clk 0:01:06.6]} 46.
Bd3 {[%clk 0:00:23]} 46... Rc3 {[%clk 0:01:03.2]} 47. Ra8+ {[%clk 0:00:19.5]}
47... Kg7 {[%clk 0:01:02.8]} 48. Bb5 {[%clk 0:00:19.7]} 48... Rxb3 {[%clk
0:00:59.7]} 49. Bc4 {[%clk 0:00:19]} 49... Rb1 {[%clk 0:00:59.5]} 50. Bd3 {[%clk
0:00:17]} 50... Rh1+ {[%clk 0:00:58.8]} 51. Kg4 {[%clk 0:00:17.6]} 51... h5+
{[%clk 0:00:58.8]} 52. Kg5 {[%clk 0:00:16.9]} 52... f6# {[%clk 0:00:59.2]} 0-1

[Event "*** SCC Grand Prix: Titled Tuesday Blitz"]
[Site "Chess.com"]
[Date "2020.08.25"]
[Round "5"]
[White "bsnsun"]
[Black "DrMamaliga"]
[Result "1-0"]
[WhiteElo "2410"]
[BlackElo "2217"]
[TimeControl "180+1"]
[EndTime "10:57:06 PDT"]
[Termination "bsnsun won on time"]

1. d4 {[%clk 0:02:46.2]} 1... Nf6 {[%clk 0:02:57.8]} 2. c4 {[%clk 0:02:42.4]}
2... e6 {[%clk 0:02:57.7]} 3. Nc3 {[%clk 0:02:41.8]} 3... Bb4 {[%clk 0:02:54.8]}
4. Qc2 {[%clk 0:02:42.3]} 4... O-O {[%clk 0:02:53.8]} 5. a3 {[%clk 0:02:42.9]}
5... Bxc3+ {[%clk 0:02:50]} 6. Qxc3 {[%clk 0:02:43.8]} 6... b5 {[%clk
0:02:46.6]} 7. cxb5 {[%clk 0:02:42.5]} 7... c6 {[%clk 0:02:46.7]} 8. e3 {[%clk
0:02:28]} 8... cxb5 {[%clk 0:02:43.4]} 9. Bxb5 {[%clk 0:02:22.2]} 9... Bb7
{[%clk 0:02:43.6]} 10. Nf3 {[%clk 0:02:22.1]} 10... Qb6 {[%clk 0:02:42.5]} 11.
Be2 {[%clk 0:02:10.2]} 11... Rc8 {[%clk 0:02:40.1]} 12. Qb4 {[%clk 0:02:10.5]}
12... Qxb4+ {[%clk 0:01:51.9]} 13. axb4 {[%clk 0:02:10.4]} 13... Nc6 {[%clk
0:01:52.4]} 14. Bd2 {[%clk 0:02:09.5]} 14... Ne4 {[%clk 0:01:45.8]} 15. Bc3
{[%clk 0:02:09.6]} 15... Ne7 {[%clk 0:01:45.3]} 16. O-O {[%clk 0:01:53.2]} 16...
Nxc3 {[%clk 0:01:40.3]} 17. bxc3 {[%clk 0:01:54.1]} 17... Rxc3 {[%clk
0:01:39.8]} 18. Rfc1 {[%clk 0:01:54.7]} 18... Rxc1+ {[%clk 0:01:11.6]} 19. Rxc1
{[%clk 0:01:54.2]} 19... Rc8 {[%clk 0:01:12.2]} 20. Ra1 {[%clk 0:01:52.1]} 20...
a6 {[%clk 0:01:07.4]} 21. h3 {[%clk 0:01:49.6]} 21... Nd5 {[%clk 0:01:04.7]} 22.
Ne5 {[%clk 0:01:13]} 22... d6 {[%clk 0:01:00.1]} 23. Nc4 {[%clk 0:01:08.1]}
23... Rd8 {[%clk 0:00:31]} 24. Na5 {[%clk 0:01:06.5]} 24... Bc8 {[%clk 0:00:14]}
25. Nc6 {[%clk 0:01:04.8]} 25... Re8 {[%clk 0:00:09.6]} 26. Bxa6 {[%clk
0:01:04.4]} 26... Bd7 {[%clk 0:00:08.8]} 27. Bb7 {[%clk 0:00:54.4]} 27... g6
{[%clk 0:00:04.4]} 28. b5 {[%clk 0:00:53.4]} 28... Nb6 {[%clk 0:00:03.1]} 29.
Ra6 {[%clk 0:00:35.3]} 29... Nc4 {[%clk 0:00:01.8]} 30. b6 {[%clk 0:00:32.2]}
30... Bxc6 {[%clk 0:00:01.4]} 31. Bxc6 {[%clk 0:00:32.2]} 31... Rb8 {[%clk
0:00:01.9]} 32. b7 {[%clk 0:00:32.1]} 1-0

[Event "*** SCC Grand Prix: Titled Tuesday Blitz"]
[Site "Chess.com"]
[Date "2020.08.25"]
[Round "5"]
[White "DarZay"]
[Black "milenapn"]
[Result "1/2-1/2"]
[WhiteElo "2205"]
[BlackElo "1969"]
[TimeControl "180+1"]
[EndTime "10:57:06 PDT"]
[Termination "Game drawn by agreement"]

1. e4 {[%clk 0:03:00]} 1... e5 {[%clk 0:02:58.8]} 2. Nf3 {[%clk 0:02:59.9]} 2...
Nc6 {[%clk 0:02:59]} 3. Bc4 {[%clk 0:02:59.7]} 3... Bc5 {[%clk 0:02:58.9]} 4. d3
{[%clk 0:02:59.8]} 4... Nf6 {[%clk 0:02:58.8]} 5. Be3 {[%clk 0:02:58.8]} 5...
Bb6 {[%clk 0:02:57.4]} 6. Nc3 {[%clk 0:02:58.6]} 6... d6 {[%clk 0:02:52.5]} 7.
O-O {[%clk 0:02:57.8]} 7... h6 {[%clk 0:02:52.3]} 8. Bxb6 {[%clk 0:02:56.1]}
8... axb6 {[%clk 0:02:51.8]} 9. Nd5 {[%clk 0:02:56.5]} 9... Nxd5 {[%clk
0:02:43.8]} 10. Bxd5 {[%clk 0:02:56.7]} 10... Ne7 {[%clk 0:02:43.7]} 11. Bb3
{[%clk 0:02:56.9]} 11... Ng6 {[%clk 0:02:42]} 12. Qd2 {[%clk 0:02:56.7]} 12...
O-O {[%clk 0:02:40.8]} 13. d4 {[%clk 0:02:56.7]} 13... Qe7 {[%clk 0:02:36.3]}
14. dxe5 {[%clk 0:02:54.9]} 14... dxe5 {[%clk 0:02:37]} 15. Qe3 {[%clk
0:02:54.6]} 15... Be6 {[%clk 0:02:32.6]} 16. Rad1 {[%clk 0:02:53.1]} 16... Rfd8
{[%clk 0:02:27.5]} 17. Nd2 {[%clk 0:02:49.5]} 17... Nf4 {[%clk 0:02:03.2]} 18.
Nc4 {[%clk 0:02:38.1]} 18... Qg5 {[%clk 0:01:57.3]} 19. g3 {[%clk 0:02:27.3]}
19... Bxc4 {[%clk 0:01:52.2]} 20. Bxc4 {[%clk 0:02:24]} 20... Nh3+ {[%clk
0:01:50.7]} 21. Kg2 {[%clk 0:02:20.2]} 21... Qxe3 {[%clk 0:01:50.7]} 22. fxe3
{[%clk 0:02:20.1]} 22... Ng5 {[%clk 0:01:50.2]} 23. Rxd8+ {[%clk 0:02:18]} 23...
Rxd8 {[%clk 0:01:49.8]} 24. h4 {[%clk 0:02:17.7]} 24... Ne6 {[%clk 0:01:48.9]}
25. Bxe6 {[%clk 0:02:16.6]} 25... fxe6 {[%clk 0:01:49.8]} 26. Kf3 {[%clk
0:02:15.1]} 26... Rd2 {[%clk 0:01:49.3]} 27. Rf2 {[%clk 0:02:15.1]} 27... Rd1
{[%clk 0:01:43.2]} 28. c4 {[%clk 0:02:10.8]} 28... Rd7 {[%clk 0:01:20.9]} 29.
Ke2 {[%clk 0:02:06.7]} 29... g6 {[%clk 0:01:14.7]} 30. g4 {[%clk 0:02:05.2]}
30... Kg7 {[%clk 0:01:13.8]} 31. b3 {[%clk 0:02:04.9]} 31... g5 {[%clk
0:01:07.4]} 32. h5 {[%clk 0:02:04.1]} 32... Rd8 {[%clk 0:01:01.8]} 33. Rf1
{[%clk 0:01:59.2]} 33... Ra8 {[%clk 0:00:50.6]} 34. a4 {[%clk 0:01:56.6]} 34...
Rd8 {[%clk 0:00:49.3]} 35. Rd1 {[%clk 0:01:53.2]} 35... Rxd1 {[%clk 0:00:47.9]}
36. Kxd1 {[%clk 0:01:53.3]} 36... Kf7 {[%clk 0:00:48.6]} 37. Kd2 {[%clk
0:01:50.8]} 37... Ke7 {[%clk 0:00:49.1]} 38. Kc3 {[%clk 0:01:35.1]} 38... c5
{[%clk 0:00:46.5]} 39. b4 {[%clk 0:01:32.3]} 39... Kd6 {[%clk 0:00:44.8]} 40. b5
{[%clk 0:01:10.6]} 40... Kc7 {[%clk 0:00:37]} 41. Kc2 {[%clk 0:01:10.1]} 41...
Kb8 {[%clk 0:00:36.4]} 42. Kb3 {[%clk 0:01:08.5]} 42... Kc7 {[%clk 0:00:34.4]}
43. Ka3 {[%clk 0:01:08.2]} 43... Kb8 {[%clk 0:00:33.2]} 44. a5 {[%clk
0:01:02.5]} 44... Ka7 {[%clk 0:00:31.5]} 45. axb6+ {[%clk 0:00:59.2]} 45... Kxb6
{[%clk 0:00:31.5]} 46. Ka4 {[%clk 0:00:59.4]} 46... Ka7 {[%clk 0:00:30.9]} 47.
Ka5 {[%clk 0:00:57.9]} 47... b6+ {[%clk 0:00:30.3]} 48. Ka4 {[%clk 0:00:58.1]}
48... Kb7 {[%clk 0:00:30.5]} 49. Kb3 {[%clk 0:00:58.4]} 49... Kc7 {[%clk
0:00:31]} 50. Kc3 {[%clk 0:00:58.6]} 50... Kd7 {[%clk 0:00:31.5]} 51. Kd3 {[%clk
0:00:59.1]} 51... Kc7 {[%clk 0:00:32.3]} 52. Kd2 {[%clk 0:00:59.4]} 52... Kb7
{[%clk 0:00:33.2]} 53. Ke2 {[%clk 0:00:59.8]} 53... Kc7 {[%clk 0:00:34.1]} 54.
Kd2 {[%clk 0:01:00]} 54... Kb7 {[%clk 0:00:35]} 1/2-1/2

[Event "*** SCC Grand Prix: Titled Tuesday Blitz"]
[Site "Chess.com"]
[Date "2020.08.25"]
[Round "5"]
[White "VladimirBugayev"]
[Black "isainz"]
[Result "0-1"]
[WhiteElo "2287"]
[BlackElo "2122"]
[TimeControl "180+1"]
[EndTime "10:57:07 PDT"]
[Termination "isainz won on time"]

1. e4 {[%clk 0:03:00.9]} 1... c5 {[%clk 0:02:58.3]} 2. a3 {[%clk 0:03:00.2]}
2... g6 {[%clk 0:02:55.2]} 3. h4 {[%clk 0:02:59.4]} 3... h5 {[%clk 0:02:45.8]}
4. Nc3 {[%clk 0:02:58.4]} 4... Bg7 {[%clk 0:02:43.4]} 5. Bc4 {[%clk 0:02:58.9]}
5... Nc6 {[%clk 0:02:38.7]} 6. d3 {[%clk 0:02:59.1]} 6... Bxc3+ {[%clk
0:02:35.2]} 7. bxc3 {[%clk 0:02:58.1]} 7... Qa5 {[%clk 0:02:34]} 8. Bd2 {[%clk
0:02:50.9]} 8... Nf6 {[%clk 0:02:30.9]} 9. Nf3 {[%clk 0:02:45.2]} 9... b5 {[%clk
0:02:27.4]} 10. Bd5 {[%clk 0:02:40.8]} 10... Qc7 {[%clk 0:02:20.8]} 11. Qe2
{[%clk 0:02:18.1]} 11... d6 {[%clk 0:02:15.8]} 12. Ng5 {[%clk 0:01:51.6]} 12...
Nxd5 {[%clk 0:02:06.3]} 13. exd5 {[%clk 0:01:51.5]} 13... Ne5 {[%clk 0:02:06.4]}
14. Bf4 {[%clk 0:01:35.9]} 14... Qa5 {[%clk 0:01:59.4]} 15. Bxe5 {[%clk
0:00:55.7]} 15... dxe5 {[%clk 0:01:57.5]} 16. Kd2 {[%clk 0:00:55]} 16... Bf5
{[%clk 0:01:48.2]} 17. f3 {[%clk 0:00:41.4]} 17... Qa4 {[%clk 0:01:37]} 18. Qxe5
{[%clk 0:00:28.3]} 18... f6 {[%clk 0:01:33.9]} 19. Qc7 {[%clk 0:00:15.4]} 19...
fxg5 {[%clk 0:01:24.4]} 20. g3 {[%clk 0:00:08.7]} 20... Rc8 {[%clk 0:01:01.3]}
21. Qe5 {[%clk 0:00:07.1]} 21... Kf7 {[%clk 0:00:54.8]} 22. Rhe1 {[%clk
0:00:04.2]} 22... Rhe8 {[%clk 0:00:48.1]} 23. hxg5 {[%clk 0:00:04.6]} 23... c4
{[%clk 0:00:29]} 24. g4 {[%clk 0:00:04.3]} 24... Bd7 {[%clk 0:00:20.3]} 25. gxh5
{[%clk 0:00:01.7]} 25... gxh5 {[%clk 0:00:17.8]} 26. g6+ {[%clk 0:00:01.6]}
26... Kg8 {[%clk 0:00:15.3]} 27. Qxh5 {[%clk 0:00:01.4]} 27... Kg7 {[%clk
0:00:09.3]} 28. Qh7+ {[%clk 0:00:01.7]} 28... Kf6 {[%clk 0:00:09.2]} 0-1

[Event "*** SCC Grand Prix: Titled Tuesday Blitz"]
[Site "Chess.com"]
[Date "2020.08.25"]
[Round "5"]
[White "ruslansezdbekov"]
[Black "ChristopherYoo"]
[Result "0-1"]
[WhiteElo "2561"]
[BlackElo "2832"]
[TimeControl "180+1"]
[EndTime "10:57:11 PDT"]
[Termination "ChristopherYoo won by resignation"]

1. d4 {[%clk 0:03:00.9]} 1... Nf6 {[%clk 0:02:58.9]} 2. c4 {[%clk 0:03:00.1]}
2... g6 {[%clk 0:02:59.1]} 3. Nf3 {[%clk 0:02:57.6]} 3... Bg7 {[%clk 0:02:59.1]}
4. g3 {[%clk 0:02:57.7]} 4... O-O {[%clk 0:02:59.2]} 5. Bg2 {[%clk 0:02:57.8]}
5... Nc6 {[%clk 0:02:59.7]} 6. O-O {[%clk 0:02:55.3]} 6... d5 {[%clk 0:02:59.6]}
7. cxd5 {[%clk 0:02:48.2]} 7... Nxd5 {[%clk 0:03:00.5]} 8. Nc3 {[%clk
0:02:47.1]} 8... e5 {[%clk 0:03:00.2]} 9. Bg5 {[%clk 0:02:08.7]} 9... f6 {[%clk
0:02:59.3]} 10. Nxd5 {[%clk 0:02:02.6]} 10... fxg5 {[%clk 0:02:58.7]} 11. Nxe5
{[%clk 0:01:58.8]} 11... Nxe5 {[%clk 0:02:57.8]} 12. dxe5 {[%clk 0:01:58.2]}
12... Bxe5 {[%clk 0:02:58.7]} 13. Qb3 {[%clk 0:01:55.5]} 13... Kh8 {[%clk
0:02:53.9]} 14. Rad1 {[%clk 0:01:52.5]} 14... c6 {[%clk 0:02:53.5]} 15. Ne3
{[%clk 0:01:47.5]} 15... Qe7 {[%clk 0:02:52.4]} 16. Nc4 {[%clk 0:01:33.7]} 16...
Be6 {[%clk 0:02:41.6]} 17. Qc2 {[%clk 0:01:33.5]} 17... Bg7 {[%clk 0:02:39.4]}
18. b3 {[%clk 0:01:20.8]} 18... Rae8 {[%clk 0:02:29.2]} 19. e4 {[%clk
0:01:15.1]} 19... Qc5 {[%clk 0:02:20.9]} 20. Ne3 {[%clk 0:01:09.6]} 20... Bd4
{[%clk 0:02:00.9]} 21. Qxc5 {[%clk 0:00:59.3]} 21... Bxc5 {[%clk 0:02:01.8]} 22.
Rfe1 {[%clk 0:00:57.5]} 22... Rd8 {[%clk 0:02:01]} 23. h3 {[%clk 0:00:55]} 23...
Bxe3 {[%clk 0:01:52.1]} 24. fxe3 {[%clk 0:00:50.4]} 24... Kg7 {[%clk 0:01:51.7]}
25. g4 {[%clk 0:00:43.2]} 25... Kf6 {[%clk 0:01:45.8]} 26. Rd4 {[%clk
0:00:42.6]} 26... c5 {[%clk 0:01:34.1]} 27. Rxd8 {[%clk 0:00:39.2]} 27... Rxd8
{[%clk 0:01:33.5]} 28. e5+ {[%clk 0:00:39.4]} 28... Kxe5 {[%clk 0:01:33.2]} 29.
Bxb7 {[%clk 0:00:39.5]} 29... Rd2 {[%clk 0:01:32.1]} 30. Ra1 {[%clk 0:00:31]}
30... Bd5 {[%clk 0:01:28.4]} 31. Bxd5 {[%clk 0:00:28.3]} 31... Kxd5 {[%clk
0:01:29.3]} 32. Rf1 {[%clk 0:00:26.2]} 32... Rxa2 {[%clk 0:01:06.5]} 33. Rf7
{[%clk 0:00:23.4]} 33... Re2 {[%clk 0:01:06.7]} 34. Rxa7 {[%clk 0:00:19.4]}
34... Rxe3 {[%clk 0:01:06.8]} 35. Rxh7 {[%clk 0:00:18.2]} 35... Rxb3 {[%clk
0:01:05.2]} 36. Kg2 {[%clk 0:00:16.7]} 36... c4 {[%clk 0:01:04.9]} 37. Rc7
{[%clk 0:00:12]} 37... Rd3 {[%clk 0:00:56.8]} 38. Kh2 {[%clk 0:00:08.8]} 38...
Kd4 {[%clk 0:00:53.1]} 39. Kg2 {[%clk 0:00:07.2]} 39... c3 {[%clk 0:00:49.2]}
40. Kh2 {[%clk 0:00:06.8]} 40... Ke3 {[%clk 0:00:48.7]} 41. Kg3 {[%clk
0:00:06.8]} 41... Kd2+ {[%clk 0:00:48.7]} 42. Kg2 {[%clk 0:00:06.7]} 42... c2
{[%clk 0:00:49.1]} 0-1

[Event "*** SCC Grand Prix: Titled Tuesday Blitz"]
[Site "Chess.com"]
[Date "2020.08.25"]
[Round "5"]
[White "Nafania1"]
[Black "UmbertoConcelli"]
[Result "1-0"]
[WhiteElo "2456"]
[BlackElo "2707"]
[TimeControl "180+1"]
[EndTime "10:57:11 PDT"]
[Termination "Nafania1 won by resignation"]

1. e4 {[%clk 0:03:00.9]} 1... c5 {[%clk 0:02:59.1]} 2. Nf3 {[%clk 0:03:00.5]}
2... d6 {[%clk 0:02:58.9]} 3. Bb5+ {[%clk 0:03:00.4]} 3... Bd7 {[%clk
0:02:57.5]} 4. Bxd7+ {[%clk 0:03:00.1]} 4... Nxd7 {[%clk 0:02:54.5]} 5. O-O
{[%clk 0:02:59]} 5... Ngf6 {[%clk 0:02:54]} 6. Qe2 {[%clk 0:02:59.2]} 6... e6
{[%clk 0:02:53.5]} 7. b3 {[%clk 0:02:59]} 7... Be7 {[%clk 0:02:52.5]} 8. Bb2
{[%clk 0:02:59.1]} 8... O-O {[%clk 0:02:50.2]} 9. c4 {[%clk 0:02:59.2]} 9... a6
{[%clk 0:02:45.2]} 10. d4 {[%clk 0:02:56.9]} 10... cxd4 {[%clk 0:02:44.2]} 11.
Nxd4 {[%clk 0:02:57.2]} 11... Rc8 {[%clk 0:02:43.3]} 12. Nc3 {[%clk 0:02:56.6]}
12... Qa5 {[%clk 0:02:43.2]} 13. Rad1 {[%clk 0:02:52]} 13... Rfd8 {[%clk
0:02:31.1]} 14. Kh1 {[%clk 0:02:31.1]} 14... Qh5 {[%clk 0:02:27.3]} 15. Qxh5
{[%clk 0:02:13.8]} 15... Nxh5 {[%clk 0:02:28.2]} 16. f4 {[%clk 0:02:14.1]} 16...
Nc5 {[%clk 0:02:27.2]} 17. g3 {[%clk 0:02:08.6]} 17... Nf6 {[%clk 0:02:26.4]}
18. Rfe1 {[%clk 0:02:04.6]} 18... Bf8 {[%clk 0:02:25.8]} 19. Kg2 {[%clk
0:02:02.7]} 19... d5 {[%clk 0:02:11.7]} 20. cxd5 {[%clk 0:01:20.3]} 20... exd5
{[%clk 0:02:11.4]} 21. e5 {[%clk 0:01:15.5]} 21... Nfe4 {[%clk 0:02:11.4]} 22.
Nde2 {[%clk 0:01:01.7]} 22... Nxc3 {[%clk 0:01:54.5]} 23. Nxc3 {[%clk
0:00:59.6]} 23... d4 {[%clk 0:01:54.6]} 24. Ne2 {[%clk 0:00:51.6]} 24... Ne6
{[%clk 0:01:54.1]} 25. Rc1 {[%clk 0:00:39.9]} 25... d3 {[%clk 0:01:51.5]} 26.
Rxc8 {[%clk 0:00:27.1]} 26... Rxc8 {[%clk 0:01:52.4]} 27. Nd4 {[%clk 0:00:27.3]}
27... Nxd4 {[%clk 0:01:46.3]} 28. Bxd4 {[%clk 0:00:27.4]} 28... Rc2+ {[%clk
0:01:47.2]} 29. Kf3 {[%clk 0:00:21.9]} 29... Bb4 {[%clk 0:01:44]} 30. Rd1 {[%clk
0:00:20.4]} 30... d2 {[%clk 0:01:44.1]} 31. Be3 {[%clk 0:00:19.7]} 31... Rxa2
{[%clk 0:01:43.1]} 32. f5 {[%clk 0:00:16.4]} 32... g6 {[%clk 0:01:41.6]} 33. f6
{[%clk 0:00:14]} 33... Rb2 {[%clk 0:01:37.4]} 34. Ke4 {[%clk 0:00:14]} 34...
Rxb3 {[%clk 0:01:36]} 35. Bxd2 {[%clk 0:00:14.1]} 35... Bf8 {[%clk 0:01:26.1]}
36. Be3 {[%clk 0:00:13]} 36... Rb4+ {[%clk 0:01:25.9]} 37. Kf3 {[%clk
0:00:13.2]} 37... Rb5 {[%clk 0:01:26]} 38. Rd8 {[%clk 0:00:12.5]} 38... Rb3
{[%clk 0:01:20.8]} 39. Ke4 {[%clk 0:00:12.2]} 39... Rb4+ {[%clk 0:01:20.2]} 40.
Kd3 {[%clk 0:00:10.9]} 40... Rb3+ {[%clk 0:01:19.9]} 41. Kd2 {[%clk 0:00:11.2]}
41... Rxe3 {[%clk 0:01:12]} 42. Kxe3 {[%clk 0:00:11.4]} 42... b5 {[%clk
0:01:12.9]} 43. Kd4 {[%clk 0:00:10.8]} 43... a5 {[%clk 0:01:11]} 44. Ra8 {[%clk
0:00:10.2]} 44... a4 {[%clk 0:01:10.2]} 45. Kd5 {[%clk 0:00:08.8]} 45... a3
{[%clk 0:01:07.3]} 46. g4 {[%clk 0:00:06.7]} 46... b4 {[%clk 0:01:06.7]} 47. Kc4
{[%clk 0:00:06.9]} 47... g5 {[%clk 0:01:06]} 48. Kb3 {[%clk 0:00:06.1]} 48... h6
{[%clk 0:01:03.8]} 49. h3 {[%clk 0:00:06.3]} 1-0

[Event "*** SCC Grand Prix: Titled Tuesday Blitz"]
[Site "Chess.com"]
[Date "2020.08.25"]
[Round "5"]
[White "SzMM19"]
[Black "Bastiandash"]
[Result "1-0"]
[WhiteElo "2537"]
[BlackElo "2394"]
[TimeControl "180+1"]
[EndTime "10:57:13 PDT"]
[Termination "SzMM19 won on time"]

1. e4 {[%clk 0:03:00.9]} 1... c6 {[%clk 0:02:29]} 2. Nc3 {[%clk 0:03:00.1]} 2...
d5 {[%clk 0:02:29.2]} 3. Nf3 {[%clk 0:03:00.3]} 3... dxe4 {[%clk 0:02:29.1]} 4.
Nxe4 {[%clk 0:03:01.2]} 4... Nf6 {[%clk 0:02:29.9]} 5. Qe2 {[%clk 0:03:01.8]}
5... Nxe4 {[%clk 0:02:24.8]} 6. Qxe4 {[%clk 0:03:02.7]} 6... Nd7 {[%clk
0:02:25.5]} 7. Bc4 {[%clk 0:03:02.5]} 7... Nf6 {[%clk 0:02:26]} 8. Ne5 {[%clk
0:03:03.2]} 8... e6 {[%clk 0:02:26.4]} 9. Qe2 {[%clk 0:03:03.7]} 9... Be7 {[%clk
0:02:23.4]} 10. O-O {[%clk 0:03:03.5]} 10... O-O {[%clk 0:02:13.6]} 11. c3
{[%clk 0:03:03.6]} 11... c5 {[%clk 0:02:10.5]} 12. Rd1 {[%clk 0:03:03]} 12... b6
{[%clk 0:02:10.5]} 13. d4 {[%clk 0:03:02.1]} 13... cxd4 {[%clk 0:02:08.4]} 14.
Rxd4 {[%clk 0:03:03]} 14... Qc7 {[%clk 0:02:00.1]} 15. Bf4 {[%clk 0:02:57.6]}
15... Qb7 {[%clk 0:01:21.7]} 16. Bb5 {[%clk 0:02:39.4]} 16... Rb8 {[%clk
0:00:56.7]} 17. Nc6 {[%clk 0:02:25.5]} 17... Ra8 {[%clk 0:00:52.4]} 18. Nxe7+
{[%clk 0:02:22.3]} 18... Qxe7 {[%clk 0:00:53.3]} 19. Bd6 {[%clk 0:02:22.8]}
19... Qb7 {[%clk 0:00:52.2]} 20. Bxf8 {[%clk 0:02:22.8]} 20... Kxf8 {[%clk
0:00:53.1]} 21. Rd8+ {[%clk 0:02:22.8]} 21... Ke7 {[%clk 0:00:53]} 22. Rad1
{[%clk 0:02:22.9]} 22... a6 {[%clk 0:00:48.2]} 23. Qc4 {[%clk 0:02:03.6]} 23...
Nd5 {[%clk 0:00:31.7]} 24. R1xd5 {[%clk 0:01:31.9]} 24... exd5 {[%clk
0:00:28.8]} 25. Re8+ {[%clk 0:01:30.3]} 25... Kf6 {[%clk 0:00:19]} 26. Qf4+
{[%clk 0:00:55.2]} 26... Kg6 {[%clk 0:00:07.4]} 27. Bd3+ {[%clk 0:00:54.7]}
27... f5 {[%clk 0:00:07.8]} 28. Qd6+ {[%clk 0:00:53.7]} 28... Kg5 {[%clk
0:00:06.1]} 29. h4+ {[%clk 0:00:41.7]} 29... Kxh4 {[%clk 0:00:02.5]} 30. Re7
{[%clk 0:00:29.9]} 30... Qb8 {[%clk 0:00:02.1]} 31. g3+ {[%clk 0:00:22.8]} 31...
Kg5 {[%clk 0:00:01.4]} 32. Rxg7+ {[%clk 0:00:17.5]} 1-0